[Event "Late-Titled-Tuesday-Blitz-March-05-2024"]
[Site "Chess.com"]
[Date "2024.03.05"]
[Round "4"]
[White "GiorgianBarbosa"]
[Black "Practical-Play"]
[Result "0-1"]
[WhiteElo "2421"]
[BlackElo "2570"]
[TimeControl "180+1"]
[EndTime "14:39:08 PST"]
[Termination "Practical-Play won by checkmate"]

1. b3 {[%clk 0:02:59.2]} 1... e5 {[%clk 0:02:50.6]} 2. Bb2 {[%clk 0:03:00.1]}
2... Nc6 {[%clk 0:02:50.7]} 3. Nf3 {[%clk 0:03:00.3]} 3... e4 {[%clk 0:02:50.6]}
4. Nd4 {[%clk 0:03:00.2]} 4... Nxd4 {[%clk 0:02:48.7]} 5. Bxd4 {[%clk
0:03:01.1]} 5... d5 {[%clk 0:02:45.4]} 6. e3 {[%clk 0:03:00.3]} 6... Nf6 {[%clk
0:02:46]} 7. c4 {[%clk 0:02:59.7]} 7... c6 {[%clk 0:02:25.3]} 8. cxd5 {[%clk
0:02:55.4]} 8... cxd5 {[%clk 0:02:01.1]} 9. Bb5+ {[%clk 0:02:52.6]} 9... Bd7
{[%clk 0:02:01]} 10. Bxf6 {[%clk 0:02:44.4]} 10... gxf6 {[%clk 0:01:54.8]} 11.
Bxd7+ {[%clk 0:02:42]} 11... Qxd7 {[%clk 0:01:55.7]} 12. Nc3 {[%clk 0:02:42.4]}
12... Rg8 {[%clk 0:01:52.6]} 13. g3 {[%clk 0:02:38.6]} 13... O-O-O {[%clk
0:01:42.6]} 14. Qh5 {[%clk 0:02:24.8]} 14... Rg6 {[%clk 0:01:33.4]} 15. O-O-O
{[%clk 0:02:10.2]} 15... d4 {[%clk 0:01:23.7]} 16. Ne2 {[%clk 0:01:57.4]} 16...
Rg5 {[%clk 0:00:49.8]} 17. Qxh7 {[%clk 0:01:56.4]} 17... Ra5 {[%clk 0:00:24]}
18. Kb1 {[%clk 0:01:44.3]} 18... Qb5 {[%clk 0:00:21.8]} 19. Rc1+ {[%clk
0:01:13.1]} 19... Kb8 {[%clk 0:00:21.7]} 20. Qxf7 {[%clk 0:01:10]} 20... Bd6
{[%clk 0:00:10.3]} 21. Nxd4 {[%clk 0:00:58]} 21... Qd3+ {[%clk 0:00:10]} 22. Rc2
{[%clk 0:00:58.6]} 22... Be5 {[%clk 0:00:07.7]} 23. Rc1 {[%clk 0:00:55.1]} 23...
Rc5 {[%clk 0:00:07.3]} 24. Qe6 {[%clk 0:00:22.4]} 24... Rdc8 {[%clk 0:00:06.7]}
25. Kb2 {[%clk 0:00:15.8]} 25... Rxc2+ {[%clk 0:00:06.3]} 26. Rxc2 {[%clk
0:00:11.7]} 26... Qxc2+ {[%clk 0:00:06.7]} 27. Ka3 {[%clk 0:00:11.3]} 27... Qc5+
{[%clk 0:00:07.3]} 28. Kb2 {[%clk 0:00:11]} 28... Bxd4+ {[%clk 0:00:07.8]} 29.
exd4 {[%clk 0:00:10.9]} 29... Qxd4+ {[%clk 0:00:08.7]} 30. Ka3 {[%clk 0:00:11]}
30... Qc5+ {[%clk 0:00:08.9]} 31. Ka4 {[%clk 0:00:09.8]} 31... b5+ {[%clk
0:00:08.6]} 32. Ka5 {[%clk 0:00:08.7]} 32... Qa3+ {[%clk 0:00:09]} 33. Kxb5
{[%clk 0:00:08.6]} 33... Rc5# {[%clk 0:00:09.6]} 0-1

[Event "Late-Titled-Tuesday-Blitz-March-05-2024"]
[Site "Chess.com"]
[Date "2024.03.05"]
[Round "4"]
[White "Alexei_Gubajdullin"]
[Black "TheoSlade"]
[Result "1-0"]
[WhiteElo "2628"]
[BlackElo "2418"]
[TimeControl "180+1"]
[EndTime "14:39:08 PST"]
[Termination "Alexei_Gubajdullin won by resignation"]

1. Nf3 {[%clk 0:02:59.4]} 1... d5 {[%clk 0:03:00]} 2. g3 {[%clk 0:02:59.6]} 2...
Nd7 {[%clk 0:03:00.5]} 3. Bg2 {[%clk 0:03:00.2]} 3... e5 {[%clk 0:03:00.7]} 4.
d3 {[%clk 0:03:00.7]} 4... Ngf6 {[%clk 0:03:00.5]} 5. O-O {[%clk 0:03:01.2]}
5... Bc5 {[%clk 0:03:00.7]} 6. Nbd2 {[%clk 0:03:01.2]} 6... O-O {[%clk 0:03:00]}
7. e4 {[%clk 0:03:01.3]} 7... dxe4 {[%clk 0:02:56.8]} 8. dxe4 {[%clk 0:02:59.5]}
8... Re8 {[%clk 0:02:46.1]} 9. Qe2 {[%clk 0:02:58.9]} 9... Nf8 {[%clk
0:02:44.9]} 10. Nc4 {[%clk 0:02:57.1]} 10... Bg4 {[%clk 0:02:39.7]} 11. h3
{[%clk 0:02:56.7]} 11... Bxf3 {[%clk 0:02:39.4]} 12. Bxf3 {[%clk 0:02:56]} 12...
Ne6 {[%clk 0:02:28.7]} 13. c3 {[%clk 0:02:55.7]} 13... Bd6 {[%clk 0:02:28.9]}
14. Rd1 {[%clk 0:02:55]} 14... Qe7 {[%clk 0:02:28.5]} 15. Ne3 {[%clk 0:02:50]}
15... Rad8 {[%clk 0:02:20.2]} 16. Nf5 {[%clk 0:02:48.9]} 16... Qd7 {[%clk
0:02:16.6]} 17. Be3 {[%clk 0:02:47.8]} 17... b6 {[%clk 0:02:06.9]} 18. Nxd6
{[%clk 0:02:27.4]} 18... cxd6 {[%clk 0:02:07]} 19. a4 {[%clk 0:02:27.8]} 19...
Qc6 {[%clk 0:02:03.3]} 20. Qc2 {[%clk 0:02:20.8]} 20... Nc5 {[%clk 0:02:00.2]}
21. Bg5 {[%clk 0:02:20.4]} 21... Ncd7 {[%clk 0:01:39.2]} 22. a5 {[%clk
0:02:19.4]} 22... h6 {[%clk 0:01:37.3]} 23. Be3 {[%clk 0:02:18.7]} 23... Nc5
{[%clk 0:01:36.4]} 24. axb6 {[%clk 0:02:15]} 24... axb6 {[%clk 0:01:36.1]} 25.
Bxc5 {[%clk 0:01:37.3]} 25... dxc5 {[%clk 0:01:32.3]} 26. Re1 {[%clk 0:01:27]}
26... Ra8 {[%clk 0:01:29.6]} 27. Rad1 {[%clk 0:01:24.2]} 27... Red8 {[%clk
0:01:29.9]} 28. Kg2 {[%clk 0:01:17.7]} 28... b5 {[%clk 0:01:20.9]} 29. Qe2
{[%clk 0:01:08.5]} 29... Kf8 {[%clk 0:01:17.4]} 30. h4 {[%clk 0:01:08.4]} 30...
Ke7 {[%clk 0:01:15.7]} 31. Qe3 {[%clk 0:01:07.3]} 31... Rxd1 {[%clk 0:01:00.7]}
32. Rxd1 {[%clk 0:01:06.9]} 32... Rd8 {[%clk 0:01:01.3]} 33. Ra1 {[%clk
0:01:05.5]} 33... Rd7 {[%clk 0:00:57.7]} 34. g4 {[%clk 0:01:05.3]} 34... Ne8
{[%clk 0:00:48.5]} 35. g5 {[%clk 0:01:05]} 35... hxg5 {[%clk 0:00:45.3]} 36.
Qxg5+ {[%clk 0:01:04.7]} 36... Qf6 {[%clk 0:00:44]} 37. Ra5 {[%clk 0:01:04.1]}
37... Qxg5+ {[%clk 0:00:32.3]} 38. hxg5 {[%clk 0:01:03.5]} 38... Nd6 {[%clk
0:00:33.1]} 39. b4 {[%clk 0:01:03.2]} 39... cxb4 {[%clk 0:00:30.7]} 40. cxb4
{[%clk 0:01:03.1]} 40... Rc7 {[%clk 0:00:31.5]} 41. Be2 {[%clk 0:00:53.1]} 41...
Rc2 {[%clk 0:00:18.9]} 42. Bxb5 {[%clk 0:00:48.7]} 42... Nxe4 {[%clk 0:00:19.3]}
43. Bd3 {[%clk 0:00:48.7]} 43... Rxf2+ {[%clk 0:00:18.6]} 44. Kg1 {[%clk
0:00:49.6]} 44... Rf4 {[%clk 0:00:17.5]} 45. Rxe5+ {[%clk 0:00:48.3]} 45... Kd6
{[%clk 0:00:18.2]} 46. Rxe4 {[%clk 0:00:47.5]} 46... Rf5 {[%clk 0:00:16.5]} 47.
Rd4+ {[%clk 0:00:46.5]} 47... Ke5 {[%clk 0:00:15.7]} 48. Bxf5 {[%clk 0:00:42]}
48... Kxd4 {[%clk 0:00:16.3]} 49. Bd7 {[%clk 0:00:42]} 1-0

[Event "Late-Titled-Tuesday-Blitz-March-05-2024"]
[Site "Chess.com"]
[Date "2024.03.05"]
[Round "4"]
[White "Jahonas"]
[Black "pooh2012"]
[Result "0-1"]
[WhiteElo "2390"]
[BlackElo "2532"]
[TimeControl "180+1"]
[EndTime "14:39:12 PST"]
[Termination "pooh2012 won by resignation"]

1. e4 {[%clk 0:03:00.9]} 1... c6 {[%clk 0:02:58.3]} 2. Nf3 {[%clk 0:03:01]} 2...
d5 {[%clk 0:02:56.4]} 3. Nc3 {[%clk 0:03:01.2]} 3... Bg4 {[%clk 0:02:55.1]} 4.
h3 {[%clk 0:02:59.9]} 4... Bxf3 {[%clk 0:02:54.4]} 5. Qxf3 {[%clk 0:02:59.5]}
5... e6 {[%clk 0:02:54.9]} 6. d4 {[%clk 0:02:57.9]} 6... Nd7 {[%clk 0:02:49.9]}
7. Bd3 {[%clk 0:02:56.5]} 7... dxe4 {[%clk 0:02:44.8]} 8. Nxe4 {[%clk
0:02:56.3]} 8... Ngf6 {[%clk 0:02:44.3]} 9. c3 {[%clk 0:02:55.4]} 9... Nxe4
{[%clk 0:02:39.4]} 10. Bxe4 {[%clk 0:02:54.7]} 10... Bd6 {[%clk 0:02:39.7]} 11.
O-O {[%clk 0:02:53.4]} 11... Qc7 {[%clk 0:02:28.7]} 12. Bg5 {[%clk 0:02:49.9]}
12... h6 {[%clk 0:02:17.4]} 13. Qh5 {[%clk 0:02:25.8]} 13... Bf4 {[%clk
0:01:59.2]} 14. Bxf4 {[%clk 0:02:23.3]} 14... Qxf4 {[%clk 0:01:58.2]} 15. Rae1
{[%clk 0:02:17.2]} 15... Nf6 {[%clk 0:01:52.7]} 16. Qf3 {[%clk 0:02:16.4]} 16...
Qxf3 {[%clk 0:01:48.9]} 17. Bxf3 {[%clk 0:02:17.3]} 17... Ke7 {[%clk 0:01:46.7]}
18. Re5 {[%clk 0:02:16.9]} 18... Rhd8 {[%clk 0:01:45.6]} 19. Rfe1 {[%clk
0:02:16.4]} 19... Rd6 {[%clk 0:01:40.4]} 20. g3 {[%clk 0:02:15.6]} 20... a5
{[%clk 0:01:33.4]} 21. Bg2 {[%clk 0:02:14]} 21... a4 {[%clk 0:01:30.1]} 22. f4
{[%clk 0:02:12.3]} 22... Kf8 {[%clk 0:01:27.4]} 23. f5 {[%clk 0:02:08.6]} 23...
exf5 {[%clk 0:01:19.6]} 24. Rxf5 {[%clk 0:02:08.2]} 24... Nd7 {[%clk 0:01:15.6]}
25. g4 {[%clk 0:01:53.6]} 25... Rf6 {[%clk 0:01:11.5]} 26. Rxf6 {[%clk
0:01:49.9]} 26... Nxf6 {[%clk 0:01:10.8]} 27. Kf2 {[%clk 0:01:50.2]} 27... Ra5
{[%clk 0:01:09.4]} 28. Re5 {[%clk 0:01:46.8]} 28... Rxe5 {[%clk 0:01:09]} 29.
dxe5 {[%clk 0:01:46.4]} 29... Nd7 {[%clk 0:01:09.6]} 30. Ke3 {[%clk 0:01:39.8]}
30... Nxe5 {[%clk 0:01:09.3]} 31. Kd4 {[%clk 0:01:40]} 31... Nd7 {[%clk
0:00:56.4]} 32. Kc4 {[%clk 0:01:34.6]} 32... Ke7 {[%clk 0:00:48.8]} 33. Kb4
{[%clk 0:01:33.3]} 33... Nb6 {[%clk 0:00:47.2]} 34. c4 {[%clk 0:01:28.1]} 34...
Ke6 {[%clk 0:00:42.8]} 35. Be4 {[%clk 0:01:23.3]} 35... Ke5 {[%clk 0:00:40.4]}
36. Bf5 {[%clk 0:01:10.2]} 36... g6 {[%clk 0:00:30.7]} 37. Bd3 {[%clk 0:01:06]}
37... Kd4 {[%clk 0:00:27.3]} 38. Bf1 {[%clk 0:01:05.9]} 38... f5 {[%clk
0:00:26]} 39. gxf5 {[%clk 0:01:04]} 39... gxf5 {[%clk 0:00:26.9]} 40. b3 {[%clk
0:01:04]} 40... axb3 {[%clk 0:00:26]} 41. axb3 {[%clk 0:01:04.3]} 41... Nd7
{[%clk 0:00:25.1]} 42. h4 {[%clk 0:01:01]} 42... f4 {[%clk 0:00:24.5]} 43. Bh3
{[%clk 0:01:00.9]} 43... Nc5 {[%clk 0:00:23.8]} 44. Bc8 {[%clk 0:00:58]} 44...
f3 {[%clk 0:00:21.5]} 45. Bg4 {[%clk 0:00:56.8]} 45... f2 {[%clk 0:00:21.2]} 46.
Bh3 {[%clk 0:00:56.9]} 46... Nd3+ {[%clk 0:00:18.9]} 47. Ka5 {[%clk 0:00:55.9]}
47... Kc5 {[%clk 0:00:19.1]} 48. Bf1 {[%clk 0:00:51.1]} 48... Nb4 {[%clk
0:00:18.4]} 49. Ka4 {[%clk 0:00:50.4]} 49... Nc2 {[%clk 0:00:18]} 50. Ka5 {[%clk
0:00:47.1]} 50... Ne3 {[%clk 0:00:17.2]} 51. b4+ {[%clk 0:00:46.8]} 51... Kd4
{[%clk 0:00:16.3]} 52. Be2 {[%clk 0:00:43.5]} 52... Nxc4+ {[%clk 0:00:14.5]} 0-1

[Event "Late-Titled-Tuesday-Blitz-March-05-2024"]
[Site "Chess.com"]
[Date "2024.03.05"]
[Round "4"]
[White "SnekkerAndersen"]
[Black "steepedgames"]
[Result "1-0"]
[WhiteElo "2708"]
[BlackElo "2535"]
[TimeControl "180+1"]
[EndTime "14:39:14 PST"]
[Termination "SnekkerAndersen won on time"]

1. d4 {[%clk 0:03:00.9]} 1... f5 {[%clk 0:02:49.2]} 2. g4 {[%clk 0:02:59.9]}
2... fxg4 {[%clk 0:02:48.7]} 3. e4 {[%clk 0:02:59.7]} 3... d6 {[%clk 0:02:48]}
4. h3 {[%clk 0:02:58.5]} 4... g3 {[%clk 0:02:48.3]} 5. fxg3 {[%clk 0:02:58.5]}
5... Nf6 {[%clk 0:02:47]} 6. Nc3 {[%clk 0:02:54.9]} 6... Nc6 {[%clk 0:02:38.9]}
7. Nf3 {[%clk 0:02:54.3]} 7... e5 {[%clk 0:02:35.7]} 8. d5 {[%clk 0:02:53.3]}
8... Ne7 {[%clk 0:02:34.4]} 9. Be3 {[%clk 0:02:40.4]} 9... Ng6 {[%clk
0:02:29.7]} 10. Qd2 {[%clk 0:02:39.6]} 10... Be7 {[%clk 0:02:29.5]} 11. O-O-O
{[%clk 0:02:39.2]} 11... O-O {[%clk 0:02:30.2]} 12. Be2 {[%clk 0:02:30.7]} 12...
c6 {[%clk 0:02:06]} 13. Ng5 {[%clk 0:02:24.6]} 13... Qa5 {[%clk 0:01:57.7]} 14.
Kb1 {[%clk 0:02:22.1]} 14... Bd7 {[%clk 0:01:40.3]} 15. Bc4 {[%clk 0:02:16.4]}
15... c5 {[%clk 0:01:37.7]} 16. Ne6 {[%clk 0:02:12.3]} 16... Bxe6 {[%clk
0:01:24]} 17. dxe6 {[%clk 0:02:13.2]} 17... a6 {[%clk 0:01:23.8]} 18. Nd5 {[%clk
0:02:01.1]} 18... Qxd2 {[%clk 0:01:22.8]} 19. Nxf6+ {[%clk 0:02:00.5]} 19...
Rxf6 {[%clk 0:01:20.9]} 20. Bxd2 {[%clk 0:02:00.1]} 20... b5 {[%clk 0:01:17.5]}
21. Bd5 {[%clk 0:01:59.8]} 21... Raf8 {[%clk 0:01:16.7]} 22. h4 {[%clk
0:01:46.6]} 22... h6 {[%clk 0:01:08.2]} 23. Bb7 {[%clk 0:01:21.9]} 23... Rf3
{[%clk 0:00:59.5]} 24. h5 {[%clk 0:01:20.8]} 24... Nh8 {[%clk 0:00:57.7]} 25.
Bxa6 {[%clk 0:01:20.3]} 25... Rb8 {[%clk 0:00:42.3]} 26. g4 {[%clk 0:01:13.4]}
26... Rff8 {[%clk 0:00:38]} 27. a4 {[%clk 0:01:11.6]} 27... bxa4 {[%clk
0:00:37.2]} 28. Ka2 {[%clk 0:01:05.2]} 28... Rf3 {[%clk 0:00:32.3]} 29. Rdf1
{[%clk 0:01:00.7]} 29... Rxf1 {[%clk 0:00:29.3]} 30. Rxf1 {[%clk 0:01:00.3]}
30... Kh7 {[%clk 0:00:26.6]} 31. Bc4 {[%clk 0:00:44.4]} 31... g6 {[%clk
0:00:26.7]} 32. Rh1 {[%clk 0:00:43.2]} 32... gxh5 {[%clk 0:00:20.1]} 33. Rxh5
{[%clk 0:00:33.7]} 33... Bf8 {[%clk 0:00:20.3]} 34. Bxh6 {[%clk 0:00:30.3]}
34... Bxh6 {[%clk 0:00:16.1]} 35. g5 {[%clk 0:00:30.8]} 35... Kg6 {[%clk
0:00:15.9]} 36. Rxh6+ {[%clk 0:00:31.4]} 36... Kxg5 {[%clk 0:00:16.3]} 37. Rh7
{[%clk 0:00:28.4]} 37... Ng6 {[%clk 0:00:14.9]} 38. Rd7 {[%clk 0:00:27.3]} 38...
Kf4 {[%clk 0:00:11.6]} 39. Bd5 {[%clk 0:00:26.9]} 39... Nh4 {[%clk 0:00:03.9]}
40. e7 {[%clk 0:00:23.7]} 1-0

[Event "Late-Titled-Tuesday-Blitz-March-05-2024"]
[Site "Chess.com"]
[Date "2024.03.05"]
[Round "4"]
[White "NovakRatko"]
[Black "DeArron_Fox"]
[Result "0-1"]
[WhiteElo "2395"]
[BlackElo "2550"]
[TimeControl "180+1"]
[EndTime "14:39:15 PST"]
[Termination "DeArron_Fox won on time"]

1. d4 {[%clk 0:02:57.9]} 1... d5 {[%clk 0:03:00.1]} 2. c4 {[%clk 0:02:55.9]}
2... e6 {[%clk 0:03:00]} 3. cxd5 {[%clk 0:02:54.2]} 3... exd5 {[%clk 0:03:00.9]}
4. Nc3 {[%clk 0:02:54.7]} 4... Nf6 {[%clk 0:03:01.4]} 5. Bg5 {[%clk 0:02:54.3]}
5... c6 {[%clk 0:03:01.6]} 6. f3 {[%clk 0:02:53.6]} 6... Be7 {[%clk 0:02:55.4]}
7. Qd2 {[%clk 0:02:43.2]} 7... h6 {[%clk 0:02:34]} 8. Bh4 {[%clk 0:02:32.3]}
8... O-O {[%clk 0:02:31.1]} 9. e3 {[%clk 0:02:31.3]} 9... Bf5 {[%clk 0:02:23.5]}
10. g4 {[%clk 0:02:25.3]} 10... Bh7 {[%clk 0:02:20.8]} 11. Bd3 {[%clk
0:02:24.5]} 11... Nbd7 {[%clk 0:02:16.8]} 12. Nge2 {[%clk 0:02:20.9]} 12... Re8
{[%clk 0:02:12.3]} 13. Bg3 {[%clk 0:02:17.8]} 13... Nb6 {[%clk 0:02:05.8]} 14.
b3 {[%clk 0:02:10.8]} 14... a5 {[%clk 0:02:00.2]} 15. h4 {[%clk 0:02:07.7]}
15... a4 {[%clk 0:02:00.1]} 16. Kf2 {[%clk 0:02:02.5]} 16... axb3 {[%clk
0:01:59.6]} 17. axb3 {[%clk 0:02:01.7]} 17... Rxa1 {[%clk 0:02:00.5]} 18. Rxa1
{[%clk 0:02:01.6]} 18... Bxd3 {[%clk 0:01:54.8]} 19. Qxd3 {[%clk 0:02:01.1]}
19... c5 {[%clk 0:01:55.5]} 20. Qb5 {[%clk 0:01:49.8]} 20... c4 {[%clk
0:01:46.9]} 21. Ra7 {[%clk 0:01:42.5]} 21... cxb3 {[%clk 0:01:34.4]} 22. Rxb7
{[%clk 0:01:36.9]} 22... Nfd7 {[%clk 0:00:36.1]} 23. Nxd5 {[%clk 0:00:57.7]}
23... Qa8 {[%clk 0:00:11.2]} 24. Nxe7+ {[%clk 0:00:38.6]} 24... Rxe7 {[%clk
0:00:12.1]} 25. Rxb6 {[%clk 0:00:32.7]} 25... Nxb6 {[%clk 0:00:11.1]} 26. Qxb6
{[%clk 0:00:33.3]} 26... Rb7 {[%clk 0:00:11.3]} 27. Qc5 {[%clk 0:00:09]} 27...
b2 {[%clk 0:00:11.7]} 28. Nc3 {[%clk 0:00:09.1]} 28... b1=Q {[%clk 0:00:07.9]}
29. Nxb1 {[%clk 0:00:09]} 29... Qa2+ {[%clk 0:00:08.6]} 30. Kf1 {[%clk
0:00:02.3]} 30... Rxb1+ {[%clk 0:00:07]} 31. Be1 {[%clk 0:00:02.6]} 31... Qa8
{[%clk 0:00:04.8]} 0-1

[Event "Late-Titled-Tuesday-Blitz-March-05-2024"]
[Site "Chess.com"]
[Date "2024.03.05"]
[Round "4"]
[White "JiiHart"]
[Black "flubs"]
[Result "0-1"]
[WhiteElo "2182"]
[BlackElo "2456"]
[TimeControl "180+1"]
[EndTime "14:39:15 PST"]
[Termination "flubs won on time"]

1. e4 {[%clk 0:03:00.9]} 1... c6 {[%clk 0:02:56.4]} 2. d4 {[%clk 0:03:00.3]}
2... d5 {[%clk 0:02:55.9]} 3. Nc3 {[%clk 0:03:00.6]} 3... dxe4 {[%clk
0:02:55.2]} 4. Nxe4 {[%clk 0:03:00.9]} 4... Nf6 {[%clk 0:02:54.2]} 5. Nxf6+
{[%clk 0:02:58.5]} 5... exf6 {[%clk 0:02:53.7]} 6. c3 {[%clk 0:02:56.2]} 6...
Bd6 {[%clk 0:02:52.5]} 7. Bd3 {[%clk 0:02:53.7]} 7... O-O {[%clk 0:02:51.4]} 8.
Qc2 {[%clk 0:02:52.3]} 8... Re8+ {[%clk 0:02:49.9]} 9. Ne2 {[%clk 0:02:52.1]}
9... h6 {[%clk 0:02:48.2]} 10. Be3 {[%clk 0:02:32.5]} 10... Qc7 {[%clk
0:02:46.4]} 11. O-O-O {[%clk 0:02:24.7]} 11... Be6 {[%clk 0:02:45.2]} 12. c4
{[%clk 0:02:20]} 12... Nd7 {[%clk 0:02:36.9]} 13. h3 {[%clk 0:01:57.4]} 13...
Qa5 {[%clk 0:02:30.3]} 14. Nc3 {[%clk 0:01:28.8]} 14... b5 {[%clk 0:02:10.3]}
15. d5 {[%clk 0:01:25]} 15... bxc4 {[%clk 0:01:56]} 16. Bh7+ {[%clk 0:01:22.1]}
16... Kh8 {[%clk 0:01:50.4]} 17. dxe6 {[%clk 0:01:21.8]} 17... Nf8 {[%clk
0:01:09.1]} 18. exf7 {[%clk 0:01:19.7]} 18... Red8 {[%clk 0:01:03.1]} 19. Bf5
{[%clk 0:01:13.5]} 19... Rab8 {[%clk 0:00:46.5]} 20. Ne4 {[%clk 0:00:38]} 20...
Be5 {[%clk 0:00:20.7]} 21. Rxd8 {[%clk 0:00:13.4]} 21... Qxd8 {[%clk 0:00:21.6]}
22. Nc3 {[%clk 0:00:11.3]} 22... Qa5 {[%clk 0:00:19.4]} 23. Rd1 {[%clk
0:00:10.7]} 23... g6 {[%clk 0:00:12.5]} 24. Be4 {[%clk 0:00:10.1]} 24... f5
{[%clk 0:00:11.2]} 25. Bf3 {[%clk 0:00:09.9]} 25... Kg7 {[%clk 0:00:10.5]} 26.
Bd4 {[%clk 0:00:10.2]} 26... Ne6 {[%clk 0:00:07.3]} 27. Bxe5+ {[%clk 0:00:09.1]}
27... Qxe5 {[%clk 0:00:08.2]} 28. Bxc6 {[%clk 0:00:08.3]} 28... Nd4 {[%clk
0:00:07.5]} 29. Qa4 {[%clk 0:00:04.2]} 29... Qc5 {[%clk 0:00:01.3]} 0-1

[Event "Late-Titled-Tuesday-Blitz-March-05-2024"]
[Site "Chess.com"]
[Date "2024.03.05"]
[Round "4"]
[White "Antipov_Mikhail_Al"]
[Black "karinachess1"]
[Result "1-0"]
[WhiteElo "2937"]
[BlackElo "2596"]
[TimeControl "180+1"]
[EndTime "14:39:16 PST"]
[Termination "Antipov_Mikhail_Al won by resignation"]

1. e4 {[%clk 0:02:52.3]} 1... e5 {[%clk 0:03:00.1]} 2. Nf3 {[%clk 0:02:52.2]}
2... Nc6 {[%clk 0:03:00.8]} 3. Bc4 {[%clk 0:02:52.7]} 3... Nf6 {[%clk
0:03:00.9]} 4. d3 {[%clk 0:02:53.1]} 4... h6 {[%clk 0:03:01.3]} 5. h3 {[%clk
0:02:52.5]} 5... d6 {[%clk 0:03:01.7]} 6. a4 {[%clk 0:02:49.9]} 6... g5 {[%clk
0:03:01.4]} 7. Nc3 {[%clk 0:02:45.8]} 7... Bg7 {[%clk 0:03:01.2]} 8. Nh2 {[%clk
0:02:33]} 8... Be6 {[%clk 0:02:58.9]} 9. Ng4 {[%clk 0:02:30.3]} 9... Qd7 {[%clk
0:02:50.4]} 10. Nxf6+ {[%clk 0:02:28.2]} 10... Bxf6 {[%clk 0:02:51.3]} 11. Nd5
{[%clk 0:02:28]} 11... Bg7 {[%clk 0:02:47.7]} 12. Ne3 {[%clk 0:02:16]} 12... Ne7
{[%clk 0:02:33.6]} 13. Bxe6 {[%clk 0:02:02.9]} 13... Qxe6 {[%clk 0:02:23.3]} 14.
c4 {[%clk 0:01:53.3]} 14... f5 {[%clk 0:02:15.9]} 15. Qh5+ {[%clk 0:01:41.7]}
15... Kd7 {[%clk 0:02:08.6]} 16. Bd2 {[%clk 0:01:23.8]} 16... Raf8 {[%clk
0:01:53.7]} 17. a5 {[%clk 0:01:15.7]} 17... a6 {[%clk 0:01:53.6]} 18. Nd5 {[%clk
0:01:12.4]} 18... c6 {[%clk 0:01:29.5]} 19. Nb6+ {[%clk 0:01:09.1]} 19... Kc7
{[%clk 0:01:29.6]} 20. b4 {[%clk 0:01:07.5]} 20... Qg6 {[%clk 0:00:49]} 21. Qe2
{[%clk 0:01:04.3]} 21... g4 {[%clk 0:00:49.5]} 22. hxg4 {[%clk 0:01:02.7]} 22...
fxg4 {[%clk 0:00:42.4]} 23. b5 {[%clk 0:00:58.2]} 23... Nc8 {[%clk 0:00:26.9]}
24. Be3 {[%clk 0:00:54]} 24... h5 {[%clk 0:00:21.7]} 25. Na8+ {[%clk 0:00:28]}
25... Kd7 {[%clk 0:00:18.5]} 26. bxc6+ {[%clk 0:00:24.7]} 26... bxc6 {[%clk
0:00:19.4]} 27. Rb1 {[%clk 0:00:24.6]} 27... Ke6 {[%clk 0:00:19.1]} 28. Nc7+
{[%clk 0:00:21.8]} 28... Kf7 {[%clk 0:00:18.6]} 29. Nxa6 {[%clk 0:00:17.3]}
29... Bh6 {[%clk 0:00:13.4]} 30. Rb7+ {[%clk 0:00:14.1]} 30... Kg8 {[%clk
0:00:13.7]} 31. Nb4 {[%clk 0:00:15]} 31... c5 {[%clk 0:00:05.2]} 32. Nd5 {[%clk
0:00:14.6]} 32... Qe8 {[%clk 0:00:03.6]} 33. Bxh6 {[%clk 0:00:08.9]} 33... Rxh6
{[%clk 0:00:04.5]} 34. Qe3 {[%clk 0:00:08.7]} 34... Rh7 {[%clk 0:00:03.2]} 35.
Qg5+ {[%clk 0:00:08.4]} 35... Kh8 {[%clk 0:00:02.8]} 36. Rxh7+ {[%clk
0:00:08.9]} 36... Kxh7 {[%clk 0:00:03.7]} 37. Rxh5+ {[%clk 0:00:09.1]} 1-0

[Event "Late-Titled-Tuesday-Blitz-March-05-2024"]
[Site "Chess.com"]
[Date "2024.03.05"]
[Round "4"]
[White "NateSolon"]
[Black "HalfIsCrayfish"]
[Result "1-0"]
[WhiteElo "2696"]
[BlackElo "2529"]
[TimeControl "180+1"]
[EndTime "14:39:17 PST"]
[Termination "NateSolon won by checkmate"]

1. d4 {[%clk 0:03:00.9]} 1... Nf6 {[%clk 0:02:54.9]} 2. Bf4 {[%clk 0:03:01]}
2... b6 {[%clk 0:02:54.2]} 3. Nc3 {[%clk 0:02:59.5]} 3... Bb7 {[%clk 0:02:51.1]}
4. f3 {[%clk 0:02:59.6]} 4... d5 {[%clk 0:02:49.8]} 5. e4 {[%clk 0:02:59.5]}
5... e6 {[%clk 0:02:42.2]} 6. e5 {[%clk 0:02:56.9]} 6... Nfd7 {[%clk 0:02:41.8]}
7. Be3 {[%clk 0:02:51.7]} 7... a6 {[%clk 0:02:39.9]} 8. f4 {[%clk 0:02:51.5]}
8... c5 {[%clk 0:02:40]} 9. Nf3 {[%clk 0:02:51.4]} 9... Nc6 {[%clk 0:02:40]} 10.
Be2 {[%clk 0:02:48.6]} 10... cxd4 {[%clk 0:02:39.6]} 11. Nxd4 {[%clk 0:02:47.9]}
11... Nxd4 {[%clk 0:02:37.7]} 12. Bxd4 {[%clk 0:02:48.8]} 12... Qc7 {[%clk
0:02:37.2]} 13. O-O {[%clk 0:02:48.2]} 13... Bc5 {[%clk 0:02:34.3]} 14. Kh1
{[%clk 0:02:46]} 14... O-O-O {[%clk 0:02:20.5]} 15. Bf3 {[%clk 0:02:28.6]} 15...
Kb8 {[%clk 0:02:18.5]} 16. Ne2 {[%clk 0:02:28.4]} 16... f6 {[%clk 0:02:13.1]}
17. exf6 {[%clk 0:02:22.6]} 17... gxf6 {[%clk 0:02:06.9]} 18. c3 {[%clk
0:02:12.1]} 18... e5 {[%clk 0:02:04.7]} 19. fxe5 {[%clk 0:02:13]} 19... fxe5
{[%clk 0:02:05.1]} 20. Bxc5 {[%clk 0:02:13]} 20... Nxc5 {[%clk 0:02:03.1]} 21.
a4 {[%clk 0:01:35.9]} 21... Rhg8 {[%clk 0:02:00.1]} 22. a5 {[%clk 0:01:34.7]}
22... e4 {[%clk 0:01:55.5]} 23. Bh5 {[%clk 0:01:31.5]} 23... Nd3 {[%clk
0:01:53.8]} 24. axb6 {[%clk 0:01:21.3]} 24... Qxb6 {[%clk 0:01:48.2]} 25. Nd4
{[%clk 0:01:16.9]} 25... Rg5 {[%clk 0:01:35.6]} 26. Be2 {[%clk 0:01:16.4]} 26...
Ne5 {[%clk 0:01:25.2]} 27. Qd2 {[%clk 0:01:12.3]} 27... Rdg8 {[%clk 0:01:23.8]}
28. Qf4 {[%clk 0:01:12.3]} 28... Qd6 {[%clk 0:01:06.6]} 29. g3 {[%clk
0:01:05.8]} 29... Ka8 {[%clk 0:00:53.3]} 30. Bxa6 {[%clk 0:00:57.3]} 30... Bxa6
{[%clk 0:00:50.4]} 31. Nb5 {[%clk 0:00:57.6]} 31... Qc5 {[%clk 0:00:35.3]} 32.
Rxa6+ {[%clk 0:00:57.4]} 32... Kb7 {[%clk 0:00:35.8]} 33. Ra7+ {[%clk
0:00:51.8]} 33... Kb6 {[%clk 0:00:36.1]} 34. Qf6+ {[%clk 0:00:29]} 34... Qc6
{[%clk 0:00:36.1]} 35. Qe7 {[%clk 0:00:23.8]} 35... R8g7 {[%clk 0:00:17]} 36.
Qd8+ {[%clk 0:00:23.7]} 36... Kxb5 {[%clk 0:00:14.9]} 37. Qa5+ {[%clk
0:00:17.8]} 37... Kc4 {[%clk 0:00:15.5]} 38. Qb4+ {[%clk 0:00:16.7]} 38... Kd3
{[%clk 0:00:15.7]} 39. Qd4+ {[%clk 0:00:17.6]} 39... Ke2 {[%clk 0:00:03.7]} 40.
Rf2+ {[%clk 0:00:18.3]} 40... Ke1 {[%clk 0:00:03.7]} 41. Qd2# {[%clk 0:00:18]}
1-0